bitfinex/quotes_SOLUSD_20260203
["timestamp","ask_amount","ask_price","bid_price","bid_amount"]
[1770082879769,0.45571842,103.97,103.94,33.67327303]
[1770082881770,8.08213045,103.97,103.94,33.67327303]
[1770082881972,0.45571842,103.97,103.94,33.67327303]
[1770082882173,0.45571842,103.97,103.94,41.62108147]
[1770082882588,7.62641203,103.99,103.95,8.09474832]
[1770082883895,7.62641203,103.99,103.96,9.61908426]
[1770082884587,8.11840423,103.99,103.96,9.61908426]
[1770082885194,0.4919922,103.99,103.96,9.61908426]
[1770082885997,0.4919922,103.97,103.93,7.62641203]
[1770082886200,0.4919922,103.97,103.94,9.62032852]
[1770082886393,9.61654767,103.99,103.93,8.09474832]
[1770082886394,7.62641203,103.96,103.93,9.6213309]
[1770082886697,0.4919922,103.95,103.93,9.6213309]
[1770082887686,0.4919922,103.96,103.93,9.6213309]
[1770082888195,0.4919922,103.96,103.93,17.71607922]
[1770082888977,0.4919922,103.96,103.93,9.6213309]
[1770082889278,0.4919922,103.95,103.93,9.6213309]
[1770082889892,0.4919922,103.93,103.9,32.1544012]
[1770082890222,0.4919922,103.93,103.9,24.52798917]
[1770082890374,0.4919922,103.91,103.88,24.53269781]
[1770082891075,0.4919922,103.91,103.89,9.62511511]
[1770082891388,8.11840423,103.93,103.89,34.15736515]
[1770082891690,0.4919922,103.93,103.9,0.46833629]
[1770082891893,0.4919922,103.93,103.89,34.15736515]
[1770082891894,0.4919922,103.92,103.89,34.15736515]
[1770082892696,0.4919922,103.92,103.89,41.78377718]
[1770082892902,0.4919922,103.9,103.88,9.62597446]
[1770082893093,0.4919922,103.9,103.87,24.06640952]
[1770082893094,0.4919922,103.9,103.87,34.16216469]
[1770082893301,0.4919922,103.89,103.87,9.62741888]
[1770082893588,8.11840423,103.89,103.87,9.62741888]
[1770082893790,0.4919922,103.87,103.85,9.62877659]
[1770082896195,8.11840423,103.88,103.85,9.62877659]
[1770082896992,0.4919922,103.86,103.84,48.41562276]
[1770082899987,0.4919922,103.86,103.84,38.78593931]
[1770082900189,7.62641203,103.85,103.84,35.2212252]
[1770082900495,7.62641203,103.85,103.81,10.10081602]
[1770082901399,26.74,103.88,103.83,0.5]
[1770082901699,7.62641203,103.87,103.84,9.63005864]
[1770082902514,7.62641203,103.87,103.83,10.1306079]
[1770082905899,17.25390117,103.87,103.82,17.75827516]
[1770082906116,7.62641203,103.86,103.82,10.13186313]
[1770082907007,7.62641203,103.86,103.83,10.13094343]
[1770082907698,7.62641203,103.86,103.83,0.5]
[1770082910411,31.03527085,103.89,103.84,0.5]
[1770082910709,7.62641203,103.88,103.85,0.5]
[1770082913704,7.62641203,103.89,103.85,10.12926779]
[1770082913926,7.62641203,103.9,103.86,0.5]
[1770082914620,7.62641203,103.91,103.87,0.5]
[1770082914913,7.62641203,103.92,103.88,0.5]
[1770082915722,7.62641203,103.93,103.9,0.5]
[1770082916625,7.62641203,103.94,103.9,0.5]
[1770082918002,7.62641203,103.94,103.9,10.12460461]
[1770082918924,9.62076954,103.95,103.91,0.5]
[1770082918925,7.62641203,103.95,103.91,0.5]
[1770082919219,7.62641203,103.94,103.91,0.5]
[1770082919800,7.62641203,103.96,103.92,0.5]
[1770082920225,7.62641203,103.96,103.92,10.12235166]
[1770082920425,7.62641203,103.96,103.93,0.5]
[1770082920900,7.62641203,103.98,103.94,8.12641203]
[1770082921100,7.62641203,103.97,103.92,41.80573058]
[1770082921331,7.62641203,103.97,103.93,0.5]
[1770082921500,26.74,103.99,103.93,0.5]
[1770082921703,7.62641203,103.97,103.94,0.5]
[1770082921904,7.62641203,103.98,103.94,0.5]
[1770082922307,7.62641203,103.98,103.94,10.12073781]
[1770082924135,7.62641203,103.96,103.93,10.12144924]
[1770082924830,9.61729256,103.98,103.94,9.62089534]
[1770082924831,7.62641203,103.97,103.94,9.62089534]
[1770082925131,7.62641203,103.98,103.95,0.5]
[1770082926522,7.62641203,103.99,103.96,0.5]
[1770082927037,7.62641203,103.98,103.95,0.5]
[1770082927342,40.73108157,104.0,103.92,8.12641203]
[1770082927343,7.62641203,103.96,103.92,8.12641203]
[1770082927515,7.62641203,103.96,103.93,0.5]
[1770082927914,7.62641203,103.95,103.92,10.12238293]
[1770082928141,7.62641203,103.95,103.92,0.5]
[1770082929914,7.62641203,103.95,103.93,0.5]
[1770082930432,7.62641203,103.95,103.92,10.1226998]
[1770082930624,7.62641203,103.95,103.93,0.5]
[1770082930929,7.62641203,103.96,103.93,0.5]
[1770082931319,40.63294261,103.98,103.93,0.5]
[1770082931320,7.62641203,103.97,103.93,0.5]
[1770082932439,7.62641203,103.94,103.91,0.5]
[1770082932624,7.62641203,103.93,103.91,0.5]
[1770082933028,7.62641203,103.92,103.9,0.5]
[1770082935725,7.62641203,103.92,103.89,0.5]
[1770082936327,7.62641203,103.92,103.89,10.12555586]
[1770082936532,7.62641203,103.93,103.9,0.5]
[1770082937325,7.62641203,103.92,103.9,0.5]
[1770082938025,7.62641203,103.92,103.89,0.5]
[1770082939137,7.62641203,103.92,103.89,10.12550889]
[1770082940332,7.62641203,103.92,103.9,0.5]
[1770082940628,7.63798424,103.92,103.9,0.5]
[1770082941144,7.63798424,103.93,103.9,0.5]
[1770082941729,34.37798424,103.94,103.9,0.5]
[1770082941928,7.63798424,103.95,103.91,0.5]
[1770082942553,7.63798424,103.95,103.92,0.5]
[1770082942952,13.89484889,103.96,103.91,10.12281278]
[1770082942953,7.63798424,103.94,103.91,10.12281278]
[1770082943140,7.63798424,103.94,103.92,0.5]
[1770082944351,2.85041733,103.94,103.92,0.5]
[1770082944554,2.85041733,103.93,103.91,0.5]
[1770082947539,2.85041733,103.92,103.89,10.12517975]
[1770082948252,2.85041733,103.92,103.9,0.5]
[1770082950061,2.85041733,103.91,103.89,0.5]
[1770082950436,2.85041733,103.92,103.89,10.12552184]
[1770082950848,2.85041733,103.92,103.9,0.5]
[1770082951352,2.85041733,103.92,103.89,0.5]
[1770082953042,2.85041733,103.91,103.89,0.5]
[1770082954044,2.85041733,103.92,103.89,10.12531723]
[1770082954864,2.85041733,103.92,103.89,0.5]
[1770082955743,2.85041733,103.91,103.89,0.5]
[1770082956763,2.85041733,103.92,103.9,0.5]
[1770082957956,2.85041733,103.92,103.89,10.12499481]
[1770082958259,2.85041733,103.93,103.9,10.12448384]
[1770082958564,2.85041733,103.93,103.91,0.5]
[1770082959566,2.85041733,103.93,103.9,0.5]
[1770082959766,2.85041733,103.91,103.89,0.5]
[1770082959967,2.85041733,103.91,103.89,10.12549962]
[1770082960169,2.85041733,103.92,103.89,10.12549962]
[1770082960546,9.62208434,103.93,103.91,0.5]
[1770082960547,2.85041733,103.93,103.91,0.5]
[1770082961274,29.59041733,103.94,103.91,10.12357575]
[1770082961446,2.85041733,103.93,103.91,10.12357575]
[1770082963576,2.85041733,103.92,103.89,10.12510402]
[1770082963969,2.85041733,103.92,103.9,0.5]
[1770082965760,2.85041733,103.93,103.9,10.12457187]
[1770082967850,2.85041733,103.92,103.9,0.5]
[1770082968775,2.85041733,103.93,103.9,10.12435641]
[1770082969476,2.85041733,103.92,103.9,10.12435641]
[1770082969879,2.85041733,103.93,103.9,10.12435641]
[1770082972486,26.74,103.95,103.91,0.5]
[1770082972687,2.85041733,103.95,103.91,0.5]
[1770082974256,2.85041733,103.94,103.91,0.5]
[1770082974788,2.85041733,103.94,103.92,0.5]
[1770082977979,2.85041733,103.93,103.9,10.1240774]
[1770082978283,2.85041733,103.92,103.9,0.5]
[1770082979482,2.85041733,103.93,103.9,10.12458156]
[1770082979786,2.85041733,103.93,103.91,0.5]
[1770082980365,2.85041733,103.95,103.92,0.5]
[1770082980564,2.85041733,103.94,103.92,0.5]
[1770082981578,2.85041733,103.95,103.92,0.5]
[1770082982161,2.85041733,103.95,103.92,10.12277096]
[1770082983285,2.85041733,103.94,103.92,0.5]
[1770082985681,2.85041733,103.93,103.91,0.5]
[1770082985878,2.85041733,103.94,103.92,0.5]
[1770082986583,2.85041733,103.93,103.91,0.5]
[1770082986761,2.85041733,103.93,103.9,10.1241125]
[1770082987584,2.85041733,103.92,103.89,0.5]
[1770082987772,24.05170654,103.95,103.89,0.5]
[1770082987773,2.85041733,103.91,103.89,0.5]
[1770082989276,2.85041733,103.91,103.89,10.12538711]
[1770082989474,2.85041733,103.92,103.89,10.12538711]
[1770082992190,2.85041733,103.91,103.89,0.5]
[1770082993680,2.85041733,103.92,103.89,0.5]
[1770082997301,2.85041733,103.92,103.89,10.1255101]
[1770082997474,24.05240011,103.94,103.9,0.5]
[1770082997475,9.62111111,103.94,103.9,0.5]
[1770082997800,2.85041733,103.94,103.9,0.5]
[1770082998299,2.85041733,103.94,103.91,0.5]
[1770082998700,2.85041733,103.95,103.91,0.5]
[1770082999196,2.85041733,103.96,103.91,2.85041733]
[1770082999397,2.85041733,103.96,103.92,0.5]
[1770083000397,2.84984716,103.95,103.92,0.5]
[1770083001200,2.84984716,103.95,103.92,10.12273113]
[1770083001396,2.84984716,103.95,103.93,0.5]
[1770083001589,2.84984716,103.96,103.93,0.5]
[1770083002102,2.84984716,103.95,103.92,10.12273113]
[1770083003405,2.84984716,103.93,103.91,0.5]
[1770083004292,2.84984716,103.93,103.91,10.12370561]
[1770083005703,2.84984716,103.93,103.91,0.5]
[1770083006604,2.84984716,103.93,103.91,10.12368192]
[1770083007506,2.84984716,103.93,103.91,0.5]
[1770083010410,2.84984716,103.93,103.9,0.5]
[1770083010600,2.84984716,103.92,103.9,0.5]
[1770083010791,2.84984716,103.93,103.9,0.5]
[1770083013810,2.84984716,103.93,103.9,9.62462908]
[1770083013994,2.84984716,103.93,103.91,0.5]
[1770083018117,2.84984716,103.93,103.9,0.5]
[1770083023320,2.84984716,103.93,103.9,10.12449599]
[1770083026217,2.84984716,103.92,103.9,0.5]
[1770083026815,2.84984716,103.91,103.89,10.12522942]
[1770083027422,2.84984716,103.91,103.9,0.5]
[1770083027623,2.84984716,103.92,103.9,0.5]
[1770083031824,2.84984716,103.94,103.91,0.5]
[1770083032834,2.84984716,103.93,103.91,0.5]
[1770083033007,2.84984716,103.93,103.9,10.12462982]
[1770083033209,2.84984716,103.92,103.9,0.5]
[1770083033420,2.84984716,103.92,103.9,10.12449626]
[1770083035828,29.58984716,103.95,103.91,0.5]
[1770083036329,2.84984716,103.94,103.91,0.5]
[1770083038027,2.84984716,103.94,103.92,0.5]
[1770083041036,2.84984716,103.96,103.93,0.5]
[1770083041936,26.74,103.99,103.94,0.5]
[1770083042125,0.1,104.0,103.98,0.5]
[1770083042314,0.1,104.02,103.99,2.84984716]
[1770083043018,0.1,104.03,104.0,2.84984716]
[1770083043208,3.41876021,104.03,103.99,2.84984716]
[1770083043413,3.31876021,104.02,103.97,2.84984716]
[1770083044124,3.31876021,104.01,103.98,9.61723408]
[1770083044318,3.31876021,104.01,103.98,10.10409814]
[1770083045034,3.31876021,104.01,103.98,0.48686406]
[1770083045236,0.1,104.03,103.96,24.04668848]
[1770083045237,3.31876021,103.99,103.96,0.48686406]
[1770083045433,3.31876021,103.99,103.96,10.10549553]
[1770083046235,3.31876021,103.99,103.96,0.48686406]
[1770083046418,3.31876021,103.98,103.95,0.48686406]
[1770083046620,9.61634428,103.99,103.93,10.10829215]
[1770083046621,3.31876021,103.96,103.93,10.10829215]
[1770083046926,2.84984716,103.96,103.94,10.10774702]
[1770083049620,3.31876021,103.97,103.94,10.10774702]
[1770083050720,3.31876021,103.96,103.93,10.10831339]
[1770083050916,2.84984716,103.96,103.94,0.48686406]
[1770083051318,3.31876021,103.97,103.94,10.10771919]
[1770083051721,3.31876021,103.98,103.96,0.48686406]
[1770083052226,3.31876021,103.99,103.96,0.48686406]
[1770083053250,50.77824195,104.01,103.96,0.48686406]
[1770083053251,0.46891305,104.01,103.96,0.48686406]
[1770083053438,3.31876021,104.0,103.96,0.48686406]
[1770083053622,3.31876021,104.0,103.97,10.1045044]
[1770083053822,13.88926696,104.02,103.98,0.48686406]
[1770083053823,0.46891305,104.01,103.98,0.48686406]
[1770083054022,3.31876021,104.02,103.98,0.48686406]
[1770083055623,3.31876021,104.02,103.98,10.10371681]
[1770083055850,3.31876021,104.02,103.97,26.89524487]
[1770083055851,0.46891305,104.0,103.97,10.10454879]
[1770083056020,3.31876021,104.0,103.97,10.10454879]
[1770083058048,2.84984716,104.01,103.98,0.48686406]
[1770083058230,3.31876021,104.01,103.98,0.48686406]
[1770083059242,3.31876021,104.0,103.97,10.10454879]
[1770083060845,3.31681127,104.01,103.98,0.48340133]
[1770083061644,0.46696411,104.01,103.98,0.48340133]
[1770083062047,3.31681127,104.01,103.98,10.10041854]
[1770083062544,3.31333006,104.01,103.98,10.10041854]
[1770083064621,0.46696411,104.0,103.97,10.10117497]
[1770083064845,0.46696411,103.99,103.97,9.61777364]
[1770083065048,3.31333006,104.0,103.97,10.10117497]
[1770083065646,3.31333006,104.02,103.99,0.48340133]
[1770083066521,3.41333006,104.03,104.0,10.09878594]
[1770083067533,3.41333006,104.03,104.0,10.03452284]
[1770083067936,0.56696411,104.03,104.0,9.55112151]
[1770083068250,0.1,104.03,104.01,0.48340133]
[1770083068926,0.1,104.03,104.0,10.03452284]
[1770083068927,0.56696411,104.03,104.0,10.03452284]
[1770083069742,3.41333006,104.03,104.0,10.03452284]
[1770083070159,3.41333006,104.03,104.0,0.48340133]
[1770083070423,3.31333006,104.01,103.98,10.09987358]
[1770083071231,3.31333006,104.02,103.99,0.48340133]
[1770083071431,0.56696411,104.03,103.98,36.5059234]
[1770083071640,0.1,104.03,103.99,2.84636595]
[1770083071840,0.1,104.03,104.0,2.84636595]
[1770083072156,0.1,104.04,104.0,2.84636595]
[1770083072750,0.56696411,104.04,104.0,2.84636595]
[1770083073146,0.1,104.05,104.02,2.84636595]
[1770083073351,6.67133515,104.07,104.05,0.46116981]
[1770083073744,0.1,104.08,104.05,0.46116981]
[1770083075056,1e-08,104.08,104.07,3.30753576]
[1770083075231,1e-08,104.08,104.07,10.07008688]
[1770083076335,1e-08,104.09,104.08,0.46116981]
[1770083076560,1e-08,104.1,104.09,0.36116981]
[1770083076859,1e-08,104.1,104.07,33.63120975]
[1770083077068,1e-08,104.1,104.07,36.4775757]
[1770083077568,3.34636595,104.12,104.07,36.4775757]
[1770083078265,0.5,104.1,104.07,33.63120975]
[1770083078630,3.34636595,104.11,104.07,33.63120975]
[1770083079134,0.5,104.11,104.07,36.4775757]
[1770083079930,3.34636595,104.11,104.07,33.63120975]
[1770083080550,0.5,104.11,104.07,33.63120975]
[1770083080757,0.5,104.11,104.07,36.4775757]
[1770083080969,0.5,104.12,104.08,2.84636595]
[1770083082562,9.70538599,104.13,104.09,9.6070708]
[1770083083362,6.85902004,104.13,104.09,36.47111376]
[1770083085749,9.70538599,104.13,104.09,33.62474781]
[1770083086560,6.35902004,104.13,104.1,2.84636595]
[1770083087741,0.1,104.14,104.11,0.28432314]
[1770083087941,1e-08,104.14,104.11,3.13068909]
[1770083088558,1e-08,104.14,104.12,9.60430272]
[1770083089844,0.50000001,104.14,104.12,9.60430272]
[1770083090044,3.34636596,104.14,104.11,9.60468763]
[1770083090651,3.34636596,104.14,104.1,33.62151776]
[1770083091038,0.5,104.13,104.1,33.62151776]
[1770083091257,2.84636596,104.14,104.1,36.46788371]
[1770083091465,1e-08,104.14,104.1,36.46788371]
[1770083091758,1e-08,104.14,104.11,2.84636595]
[1770083092442,1e-08,104.14,104.1,36.46788371]
[1770083094367,1e-08,104.14,104.11,2.84636595]
[1770083095185,1e-08,104.14,104.12,9.60430272]
[1770083095946,3.34636595,104.16,104.12,33.61505953]
[1770083096151,0.1,104.17,104.13,2.84636595]
[1770083096769,0.6,104.17,104.13,2.84636595]
[1770083097363,0.5,104.16,104.14,9.60245822]
[1770083098368,3.44636595,104.17,104.14,9.60245822]
[1770083099264,3.34636595,104.16,104.12,9.60430272]
[1770083099843,0.5,104.16,104.12,36.46085665]
[1770083100449,0.6,104.17,104.13,2.84636595]
[1770083100946,0.5,104.18,104.14,3.13068909]
[1770083101160,3.34636595,104.19,104.14,3.13068909]
[1770083101357,0.5,104.19,104.15,36.4517428]
[1770083101674,0.5,104.18,104.14,12.44861482]
[1770083101972,3.34636595,104.18,104.14,9.60224887]
[1770083102849,0.5,104.17,104.14,9.60224887]
[1770083103048,0.5,104.15,104.13,9.60284073]
[1770083103251,3.34636595,104.15,104.13,9.60284073]
[1770083103584,0.5,104.15,104.13,9.60284073]
[1770083104075,0.5,104.14,104.12,9.60382323]
[1770083105271,0.5,104.14,104.11,33.61822864]
[1770083106167,0.5,104.13,104.11,9.60522524]
[1770083106368,2.84636595,104.15,104.12,0.47630628]
[1770083106571,2.84636595,104.16,104.12,0.47630628]
[1770083107377,2.84636595,104.16,104.12,10.07971121]
[1770083107555,2.84636595,104.15,104.12,10.07971121]
[1770083107757,2.84636595,104.15,104.12,9.60340493]
[1770083108476,3.3209813,104.15,104.12,9.60340493]
[1770083109851,3.3209813,104.15,104.12,10.07971121]
[1770083110170,0.47461535,104.15,104.12,10.07971121]
[1770083112881,3.3209813,104.16,104.13,0.47630628]
[1770083113175,0.47461535,104.16,104.13,0.47630628]
[1770083113568,0.47461535,104.15,104.12,9.60340493]
[1770083113876,0.47461535,104.14,104.11,0.47630628]
[1770083114063,0.47461535,104.13,104.11,9.60496909]
[1770083114460,0.47461535,104.18,104.13,0.47630628]
[1770083114661,0.47461535,104.18,104.12,3.13068909]
[1770083114662,0.47461535,104.18,104.15,0.47630628]
[1770083114996,0.47461535,104.18,104.15,3.32267223]
[1770083115368,0.47461535,104.18,104.15,0.47630628]
[1770083115567,0.47461535,104.18,104.15,3.32267223]
[1770083116084,0.47461535,104.19,104.16,9.60061443]
[1770083117576,0.47461535,104.19,104.16,12.92328666]
[1770083117775,0.47461535,104.19,104.16,36.92482275]
[1770083119478,0.57461535,104.2,104.17,3.32267223]
[1770083119673,0.57461535,104.2,104.16,36.92482275]
[1770083119867,0.47461535,104.19,104.16,9.60061443]
[1770083121170,0.47461535,104.19,104.16,12.44698038]
[1770083121371,0.47461535,104.19,104.17,2.84636595]
[1770083121581,0.47461535,104.19,104.16,34.06648339]
[1770083121582,0.47461535,104.19,104.16,9.60061443]
[1770083122181,0.47461535,104.19,104.16,10.0649473]
[1770083122376,0.47461535,104.19,104.16,12.90087376]
[1770083122687,0.47461535,104.19,104.16,12.43654089]
[1770083122867,0.47461535,104.19,104.16,9.60061443]
[1770083124372,0.47461535,104.19,104.16,10.0649473]
[1770083124572,0.49699414,104.18,104.15,9.60110477]
[1770083125071,0.49699414,104.18,104.15,10.06543764]
[1770083125789,0.49699414,104.18,104.14,12.90221543]
[1770083125980,0.49699414,104.17,104.14,10.06628897]
[1770083126173,0.49699414,104.16,104.13,9.60285847]
[1770083126376,0.49699414,104.13,104.1,9.60546636]
[1770083126584,0.49699414,104.12,104.1,9.60546636]
[1770083126779,0.49699414,104.14,104.1,2.83592646]
[1770083126969,0.49699414,104.14,104.12,9.60430272]
[1770083127889,0.49699414,104.16,104.13,0.46433287]
[1770083128068,0.49699414,104.16,104.12,12.90456205]
[1770083128265,3.3329206,104.15,104.12,9.60430272]
[1770083128470,0.49699414,104.15,104.12,9.60430272]
[1770083128772,0.49699414,104.15,104.12,12.44022918]
[1770083129888,0.49699414,104.15,104.12,9.60430272]
[1770083130087,0.49699414,104.15,104.12,33.61505953]
[1770083130287,0.49699414,104.15,104.12,34.0793924]
[1770083130891,0.49699414,104.14,104.12,9.60430272]
[1770083131090,0.49699414,104.16,104.12,9.60430272]
[1770083131296,3.3329206,104.15,104.12,9.60430272]
[1770083133498,3.3329206,104.15,104.12,0.46433287]
[1770083133893,0.49699414,104.15,104.12,0.46433287]
[1770083134092,0.49699414,104.14,104.11,34.08243937]
[1770083134794,3.3329206,104.16,104.12,0.46433287]
[1770083134992,0.49699414,104.16,104.13,0.46433287]
[1770083135787,0.49699414,104.16,104.13,10.06701437]
[1770083136293,0.49699414,104.16,104.13,12.90294083]
[1770083136497,0.49699414,104.18,104.15,0.46433287]
[1770083136801,3.3329206,104.18,104.14,3.30025933]
[1770083137502,0.49699414,104.17,104.14,3.30025933]
[1770083138002,0.49699414,104.18,104.15,10.06586911]
[1770083138304,0.49699414,104.19,104.16,3.30025933]
[1770083140100,0.49699414,104.19,104.17,9.5996928]
[1770083140801,0.05399414,104.2,104.17,9.5996928]
[1770083141000,2.8899206,104.2,104.17,9.5996928]
[1770083141606,2.8899206,104.2,104.17,10.06402567]
[1770083142305,2.8899206,104.2,104.17,9.5996928]
[1770083142698,3.3329206,104.19,104.17,9.5996928]
[1770083143211,0.49699414,104.19,104.17,9.5996928]
[1770083143384,3.38691474,104.2,104.17,10.06402567]
[1770083143590,0.55098828,104.2,104.18,0.46433287]
[1770083144520,0.05399414,104.2,104.18,10.06300037]
[1770083145108,0.05399414,104.2,104.19,0.46433287]
[1770083146408,6.10243694,104.21,104.19,0.46433287]
[1770083146605,6.10243694,104.21,104.2,9.59692898]
[1770083146815,6.10243694,104.21,104.19,10.06168304]
[1770083147311,0.49699414,104.2,104.17,0.46433287]
[1770083147511,3.3329206,104.2,104.18,9.59837391]
[1770083147808,6.10243694,104.21,104.18,9.59837391]
[1770083147809,9.43535754,104.21,104.18,10.06270678]
[1770083149616,9.43535754,104.21,104.16,9.59984634]
[1770083149617,0.49699414,104.18,104.16,9.59984634]
[1770083149794,0.49699414,104.18,104.15,24.46599501]
[1770083150295,3.3329206,104.18,104.16,9.60029676]
[1770083150495,3.3329206,104.18,104.15,10.06537314]
[1770083152616,3.3111855,104.17,104.14,9.60193511]
[1770083152816,3.3111855,104.16,104.14,9.60193511]
[1770083153122,3.3111855,104.16,104.13,10.09927992]
[1770083153716,3.3111855,104.18,104.14,0.49645603]
[1770083154017,3.3111855,104.18,104.15,10.09777835]
[1770083154821,0.47525904,104.18,104.15,10.09777835]
[1770083154998,0.47525904,104.19,104.16,0.49645603]
[1770083157118,3.3111855,104.19,104.16,10.0964679]
[1770083157491,3.3111855,104.19,104.16,34.09800399]
[1770083157798,0.47525904,104.18,104.16,9.60001187]
[1770083158105,0.47525904,104.19,104.16,10.0964679]
[1770083159722,0.47525904,104.18,104.16,9.60001187]
[1770083160501,0.47525904,104.16,104.14,9.60210399]
[1770083160819,0.47525904,104.15,104.13,9.60272562]
[1770083161117,0.47525904,104.13,104.11,9.60517193]
[1770083161314,3.3111855,104.13,104.11,9.60517193]
[1770083161510,3.3111855,104.13,104.1,10.10218466]
[1770083162221,3.3111855,104.14,104.11,0.49645603]
[1770083162419,0.47525904,104.14,104.11,0.49645603]
[1770083162605,0.47525904,104.18,104.14,0.49645603]
[1770083162918,0.47525904,104.18,104.15,7.60519532]
[1770083163102,0.47525904,104.18,104.16,7.60519532]
[1770083163526,0.47525904,104.19,104.16,7.60519532]
[1770083163721,0.47525904,104.19,104.17,9.5996928]
[1770083165238,0.47525904,104.19,104.16,9.60010984]
[1770083165423,8.08045436,104.19,104.16,9.60010984]
[1770083165721,0.47525904,104.19,104.16,9.60010984]
[1770083166098,0.47525904,104.19,104.16,17.20530516]
[1770083166617,13.70763226,104.21,104.17,0.43642266]
[1770083166823,6.57769598,104.21,104.17,8.04161798]
[1770083168209,6.57769598,104.21,104.18,9.59877135]
[1770083169633,0.47525904,104.2,104.18,9.59877135]
[1770083169943,6.10243694,104.21,104.19,0.43642266]
[1770083170106,1e-08,104.21,104.2,0.43642266]
[1770083170308,1e-08,104.21,104.2,8.32594112]
[1770083170517,7.28045436,104.26,104.21,0.43642266]
[1770083170721,7.28045436,104.26,104.22,0.49645603]
[1770083170923,7.28045436,104.26,104.22,8.10165135]
[1770083171229,7.28045436,104.26,104.22,0.49645603]
[1770083171422,7.28045436,104.26,104.21,8.10165135]
[1770083171827,7.60519532,104.25,104.21,8.10165135]
[1770083172327,7.60519532,104.26,104.22,9.59508731]
[1770083172531,0.47525904,104.25,104.22,9.59508731]
[1770083173133,8.08045436,104.25,104.21,10.09231136]
[1770083173330,0.47525904,104.24,104.21,10.09231136]
[1770083175008,0.47525904,104.24,104.21,17.69750668]
[1770083179232,0.47525904,104.24,104.2,10.09294749]
[1770083179411,0.47525904,104.24,104.2,17.69814281]
[1770083179611,8.08045436,104.24,104.2,17.69814281]
[1770083179834,8.08045436,104.25,104.22,0.49645603]
[1770083180035,0.47525904,104.25,104.22,0.49645603]
[1770083180242,0.47525904,104.25,104.22,10.09150202]
[1770083181231,0.47525904,104.25,104.22,17.69669734]
[1770083182336,0.47525904,104.25,104.22,17.20024131]
[1770083182940,0.47525904,104.25,104.22,9.59504599]
[1770083183243,0.47525904,104.25,104.22,17.20024131]
[1770083183735,0.47525904,104.25,104.22,17.6562467]
[1770083183943,0.47525904,104.25,104.21,8.06120071]
[1770083184139,0.47894483,104.24,104.21,17.65658988]
[1770083184521,0.47894483,104.24,104.21,17.64053709]
[1770083185339,0.47894483,104.24,104.21,10.05139456]
[1770083188631,0.47894483,104.24,104.22,0.45600539]
[1770083189330,0.47894483,104.24,104.21,9.59538917]
[1770083189839,0.47894483,104.24,104.2,8.04514792]
[1770083190341,0.47894483,104.22,104.19,10.05341799]
[1770083190837,0.47894483,104.21,104.19,10.05341799]
[1770083194347,0.47894483,104.21,104.19,9.5974126]
[1770083195291,0.47894483,104.21,104.18,10.05432751]
[1770083196353,0.47894483,104.19,104.15,8.04514792]
[1770083196648,0.47894483,104.18,104.16,9.60033082]
[1770083196850,0.47894483,104.18,104.16,10.05633621]
[1770083197249,0.47894483,104.19,104.16,10.05633621]
[1770083197556,0.47894483,104.19,104.16,17.64547874]
[1770083198134,0.47894483,104.19,104.16,10.05633621]
[1770083198456,0.47894483,104.19,104.16,10.05657143]
[1770083199034,0.47894483,104.2,104.17,0.45600539]
[1770083199443,0.47894483,104.2,104.16,17.18970857]
[1770083199444,0.47894483,104.2,104.16,17.64571396]
[1770083202068,0.47894483,104.2,104.17,0.45600539]
[1770083202470,0.47894483,104.2,104.17,8.04514792]
[1770083203663,0.47894483,104.2,104.18,0.45600539]
[1770083203865,0.47894483,104.2,104.17,8.04514792]
[1770083204263,0.47894483,104.2,104.17,17.64443775]
[1770083204467,0.47894483,104.23,104.2,0.45600539]
[1770083204674,0.47894483,104.23,104.2,3.29030295]
[1770083205378,2.83429756,104.22,104.18,0.45600539]
[1770083205555,0.47894483,104.2,104.17,10.05529522]
[1770083205736,3.31324239,104.2,104.17,9.59928983]
[1770083205942,0.47894483,104.19,104.16,9.60031024]
[1770083206164,0.47894483,104.18,104.16,9.60031024]
[1770083206361,3.31324239,104.18,104.15,10.05703203]
[1770083206567,0.47894483,104.18,104.15,10.05703203]
[1770083207880,3.31324239,104.19,104.16,0.45600539]
[1770083208177,0.47894483,104.19,104.16,0.45600539]
[1770083209067,0.47894483,104.19,104.16,10.05655897]
[1770083209459,3.31324239,104.2,104.17,0.45600539]
[1770083209656,3.31324239,104.2,104.16,0.45600539]
[1770083209657,0.47894483,104.19,104.16,0.45600539]
[1770083209862,3.31324239,104.18,104.15,9.60104045]
[1770083210772,0.47894483,104.18,104.15,10.06191726]
[1770083211176,0.47894483,104.18,104.16,9.60050929]
[1770083211854,0.45115663,104.19,104.16,10.0613861]
[1770083214472,0.45115663,104.18,104.15,10.06197124]